[Event "46th OKU-B 2019"]
[Site "Utrecht"]
[Date "2019.06.01"]
[Round "4.1"]
[White "Flohr, Ron"]
[Black "Van Aken, Jelmer"]
[Result "1-0"]
[ECO "A45"]
[WhiteElo "1883"]
[BlackElo "1698"]
[Annotator "NA RC"]
[PlyCount "99"]
[EventDate "2019.05.31"]
[EventType "swiss"]
[EventCountry "NED"]
[SourceTitle "playchess.com"]
[Source "ChessBase"]
[SourceQuality "1"]
[TimeControl "6600+10"]

{[%evp 19,98,-56,32767,32767,10,32767,32767,32767,165,152,32767,32767,32767,32767,32767,104,111,113,122,51,197,116,95,60,139,32767,296,128,115,113,244,377,254,286,573,666,2343,392,415,0,224,184,179,255,456,544,520,336,359,309,258,32767,32767,32767,32767,32767,32767,32767,32767,32767,32767,32767,32767,0,0,0,29992,151,29993,29994,29994,32767,32767,29996,29996,29997,29997,29998,29998,29999,29999]} 1. d4 {[%emt 0:00:00]} Nf6 {[%emt 0:00:00]} 2. Bg5 {[%emt 0:00:01]} e6 {[%emt 0:00:56]} 3. Nd2 {[%emt 0:00:57]} Be7 {[%emt 0:00:28]} 4. e4 {[%emt 0:02:35]} c5 {[%emt 0:05:59]} 5. dxc5 {[%emt 0:05:15]} Qa5 {[%emt 0:02:07]} 6. c3 {[%emt 0:06:05]} Qxc5 {[%emt 0:00:46]} 7. Be3 {[%emt 0:00:39]} Qc7 {[%emt 0:00:57]} 8. f4 {[%emt 0:02:35]} b6 {[%emt 0:01:28]} 9. Qf3 {[%emt 0:03:13]} Bb7 {[%emt 0:00:57]} 10. Bd3 {[%emt 0:01:10]} O-O {[%emt 0:02:10]} 11. Qh3 {[%emt 0:06:50]} d6 {[%emt 0:07:35]} 12. Ngf3 {[%emt 0:02:30]} Nbd7 {[%emt 0:00:25]} 13. g4 {[%emt 0:01:34]} e5 $2 {[%emt 0:06:36]} (13... d5 $11 {and Black is okay.} 14. e5 Ne4) 14. g5 {[%emt 0:04:33]} Ne8 {[%emt 0:00:47]} 15. Nh4 {[%emt 0:02:34]} Nc5 {[%emt 0:05:14]} 16. Bc2 {[%emt 0:02:15]} d5 {[%emt 0:09:37]} 17. exd5 {[%emt 0:04:55]} g6 {[%emt 0:07:22]} 18. f5 {[%emt 0:07:30]} Bxd5 {[%emt 0:11:47]} 19. Rf1 {[%emt 0:00:49]} ({Better is} 19. O-O $16) 19... Nd6 {[%emt 0:03:23]} (19... Rd8 $1 $14) 20. f6 {[%emt 0:03:16]} Bd8 {[%emt 0:01:51]} 21. Bxc5 {[%emt 0:02:10]} Qxc5 {[%emt 0:01:03]} ({Black should try} 21... bxc5 $14 22. Ng2 Kh8) 22. O-O-O {[%emt 0:01:59]} Bxa2 $2 {[%emt 0:04:34] [#]} (22... Be6 $16 23. Qf3 Bc7) 23. Ne4 {[%emt 0:02:22]} (23. Nb3 $1 $18 {[%cal Rb3c5] and the rest is easy.} Qc7 24. Ng2) 23... Nxe4 {[%emt 0:02:00]} 24. Bxe4 {[%emt 0:00:43]} Be6 {[%emt 0:01:16] [#]} (24... Rc8 $16 {keeps fighting.}) 25. Nf5 $1 {[%emt 0:08:02]} Bxf5 {[%emt 0:04:50]} 26. Rxf5 {[%emt 0:00:47]} h5 $2 {[%emt 0:04:59]} (26... Rc8 27. Rf3 h5) 27. Bxa8 {[%emt 0:02:49]} gxf5 {[%emt 0:00:36] [#]} 28. Qxf5 $2 {[%emt 0:00:56]} (28. Bd5 $1 {[%mdl 512]} Qa5 29. Qxf5 Qa1+ {[#]} 30. Kc2 $1 {[%mdl 512]} Qa4+ 31. Bb3 $1 {[%mdl 512]} Kh8 32. Bxa4 b5 33. g6) 28... Qe3+ {[%emt 0:04:57]} 29. Rd2 $2 {[%emt 0:02:56]} (29. Kc2 $18 Qe2+ 30. Rd2) 29... Qf4 $2 {[%emt 0:01:06]} (29... Bxf6 $1 $11 30. Kc2 Bxg5) 30. Be4 {[%emt 0:01:21]} Qxf5 {[%emt 0:00:50]} 31. Bxf5 {[%emt 0:00:05]} Bc7 {[%emt 0:01:08]} (31... e4 {is a better defense.} 32. Rd7 (32. Bxe4 Bc7 $18) 32... b5 33. Bxe4 Bb6) 32. Rd7 {[%emt 0:00:38]} Bb8 {[%emt 0:00:27]} 33. Kd1 {[%emt 0:03:58]} e4 {[%emt 0:01:54]} 34. Ke2 {[%emt 0:01:22]} Bf4 {[%emt 0:00:56]} 35. h4 {[%emt 0:01:35]} Bg3 {[%emt 0:00:30]} 36. Ke3 {[%emt 0:02:54]} Bxh4 {[%emt 0:00:15]} 37. Kf4 {[%emt 0:00:14]} e3 {[%emt 0:00:37]} 38. Re7 {[%emt 0:01:00]} Bf2 {[%emt 0:02:00]} 39. g6 {[%emt 0:03:29]} fxg6 {[%emt 0:01:30]} 40. Be6+ {[%emt 0:03:31]} Kh8 {[%emt 0:00:09]} 41. Kg5 $1 {[%emt 0:00:13] [#]} Rxf6 $11 {[%emt 0:01:27] Promotion} 42. Re8+ {[%emt 0:01:38]} Kg7 $2 {[%emt 0:02:06]} (42... Kh7 $11) 43. Rg8+ {[%emt 0:00:26]} Kh7 {[%emt 0:00:04]} 44. Kxf6 {[%emt 0:00:39]} Bh4+ {[%emt 0:01:43]} 45. Kf7 {[%emt 0:00:23]} e2 {[%emt 0:00:04]} 46. Rg7+ {[%emt 0:00:28]} Kh6 {[%emt 0:01:08]} 47. Rxg6+ {[%emt 0:00:15]} Kh7 {[%emt 0:00:03]} 48. Bf5 {[%emt 0:00:23]} e1=Q {[%emt 0:00:32]} 49. Re6+ {[%emt 0:00:15]} Kh8 {[%emt 0:00:14]} 50. Rh6# {[%emt 0:00:01]} 1-0

[Event "46th OKU-B 2019"]
[Site "Utrecht"]
[Date "2019.06.01"]
[Round "4.2"]
[White "Aguado Garcia, Pablo"]
[Black "Van de Lagemaat, Arend"]
[Result "1/2-1/2"]
[ECO "B22"]
[WhiteElo "1890"]
[BlackElo "1855"]
[Annotator "NA RC"]
[PlyCount "153"]
[EventDate "2019.05.31"]
[EventType "swiss"]
[EventCountry "NED"]
[SourceTitle "playchess.com"]
[Source "ChessBase"]
[SourceQuality "1"]
[TimeControl "6600+10"]

{[%evp 21,152,71,119,157,32767,32767,32767,32767,32767,32767,32767,32767,171,32767,32767,32767,83,100,81,97,136,101,98,94,106,107,106,97,98,103,138,74,89,97,124,104,93,32767,79,-303,102,73,89,94,96,100,104,105,110,96,73,100,114,2,77,67,111,188,187,12,5,6,32767,10,8,0,12,0,0,0,0,32767,32767,32767,32767,32767,32767,32767,32767,32767,32767,32767,32767,32767,32767,32767,32767,32767,0,32767,32767,32767,32767,0,32767,0,0,32767,32767,0,0,0,32767,32767,32767,32767,32767,32767,0,0,0,0,0,0,0,0,0,0,0,0,0,0,0,0,0,0,0,0,0,0,0,0,0]} 1. e4 {[%emt 0:00:00]} c5 {[%emt 0:00:04]} 2. c3 {[%emt 0:00:00]} d5 {[%emt 0:00:35]} 3. exd5 {[%emt 0:00:04]} Qxd5 {[%emt 0:00:03]} 4. d4 {[%emt 0:00:06]} Nc6 {[%emt 0:00:50]} 5. Nf3 {[%emt 0:00:05]} cxd4 {[%emt 0:02:30]} 6. cxd4 {[%emt 0:00:05]} Bg4 {[%emt 0:00:37]} 7. Be2 {[%emt 0:02:22]} e6 {[%emt 0:01:12]} 8. O-O {[%emt 0:00:23]} Nf6 {[%emt 0:00:43]} 9. Nc3 {[%emt 0:00:17]} Qd8 {[%emt 0:00:57]} 10. Qb3 {[%emt 0:15:37] B22: Sicilian: 2 c3} (10. h3 Bh5 11. Be3 Be7 12. Qb3 O-O 13. Qxb7 Nb4 14. Bf4 Nfd5 15. Nxd5 Nxd5 16. Be5 f6 17. Bh2 Bd6 18. Qc6 Bxh2+ 19. Nxh2 Bf7 20. Rac1 {1-0 (82) Shuvalova,P (2385)-Kovalevskaya,E (2405) St Petersburg 2017}) 10... Rb8 {[%emt 0:04:23]} 11. Rd1 {[%emt 0:06:27]} Nd5 {[%emt 0:05:06]} 12. Nxd5 {[%emt 0:06:49]} exd5 {[%emt 0:01:11]} 13. Bf4 {[%emt 0:05:27]} Bd6 {[%emt 0:00:41]} 14. Qxd5 {[%emt 0:04:18]} Bxf4 {[%emt 0:01:17]} 15. Qe4+ {[%emt 0:00:09]} Qe7 {[%emt 0:01:33]} 16. Qxf4 {[%emt 0:00:09]} O-O {[%emt 0:01:36]} 17. Bb5 $146 {[%emt 0:10:32]} ({Predecessor:} 17. Qxg4 Qxe2 {1-0 (51) Dietzen,C (1982)-Beltz,M (1979) Germany 2017}) 17... Bxf3 {[%emt 0:05:01]} 18. Qxf3 {[%emt 0:00:03]} Rbc8 {[%emt 0:06:19]} 19. d5 {[%emt 0:05:17]} Ne5 {[%emt 0:01:09]} 20. Qe3 {[%emt 0:01:59]} a6 {[%emt 0:01:47]} 21. Ba4 {[%emt 0:03:08]} Qd6 {[%emt 0:00:53]} 22. Rac1 {[%emt 0:07:02]} Nc4 {[%emt 0:04:02]} 23. Qd4 {[%emt 0:00:39]} b5 {[%emt 0:01:38]} 24. Bc2 {[%emt 0:03:53]} g6 {[%emt 0:01:15]} 25. Be4 {[%emt 0:01:41]} Rfe8 {[%emt 0:01:28]} 26. Bf3 {[%emt 0:00:34]} (26. g3 $142) 26... Ne5 {[%emt 0:00:28]} 27. Be2 {[%emt 0:02:23]} Red8 {[%emt 0:02:59]} 28. Rxc8 {[%emt 0:02:57]} Rxc8 {[%emt 0:00:02]} 29. Bd3 {[%emt 0:02:09]} h5 {[%emt 0:06:18]} 30. Be4 $2 {[%emt 0:06:19]} (30. a3 $16 {keeps the pressure on.}) 30... Rc7 $2 {[%emt 0:01:39]} (30... Rc4 $19 31. Qe3 {[#]} Ng4 $1 {[%mdl 576] Double Attack, Discovered Attack}) 31. g3 {[%emt 0:01:19]} Rc4 {[%emt 0:02:44]} 32. Qe3 {[%emt 0:00:42]} Ng4 {[%emt 0:00:48]} 33. Qe2 {[%emt 0:00:50]} Nf6 {[%emt 0:02:12]} 34. Bg2 {[%emt 0:00:54]} Rc5 {[%emt 0:01:40]} 35. Qe3 {[%emt 0:02:37]} Rc2 {[%emt 0:05:55]} 36. Qd4 {[%emt 0:01:38]} Ng4 {[%emt 0:02:24] [#]} 37. Rd2 {[%emt 0:00:43]} ({White should play} 37. h3 $1 $16 {[%cal Rh3g4]} Nf6 38. a3) 37... Rc1+ {[%emt 0:00:34] [#]} (37... Rc4 $1 $11 38. Qd3 Rc1+ 39. Bf1 Ne5) 38. Bf1 $1 {[%emt 0:00:11]} Nxh2 {[%emt 0:03:51]} 39. Kxh2 {[%emt 0:00:03]} Rxf1 {[%emt 0:00:12] [#]} 40. Kg2 $2 {[%emt 0:00:05]} (40. Rc2 $1 $18 {[%cal Rc2c8]} Qd7 41. Rc6) 40... Rc1 {[%emt 0:00:22]} 41. Qe4 {[%emt 0:00:46]} Rc5 {[%emt 0:02:08]} 42. a3 {[%emt 0:00:32]} Rc8 {[%emt 0:01:49]} 43. b4 {[%emt 0:03:24]} Rd8 {[%emt 0:00:48]} 44. Rd3 {[%emt 0:00:54]} Rc8 {[%emt 0:00:44]} 45. Re3 {[%emt 0:01:00]} Rd8 {[%emt 0:00:24]} 46. Rc3 {[%emt 0:00:32]} Qxd5 {[%emt 0:03:27]} 47. Qxd5 {[%emt 0:00:04]} Rxd5 {[%emt 0:00:25]} 48. Rc6 {[%emt 0:00:03]} a5 {[%emt 0:02:19]} 49. bxa5 {[%emt 0:01:31]} Rd3 {[%emt 0:00:03]} 50. a4 {[%emt 0:04:37]} Ra3 {[%emt 0:02:05]} 51. Rc8+ {[%emt 0:00:29]} Kg7 {[%emt 0:00:03]} 52. axb5 {[%emt 0:00:03]} Rxa5 {[%emt 0:00:02]} 53. Rb8 {[%emt 0:00:01]} Ra3 {[%emt 0:01:09]} 54. Kh3 {[%emt 0:01:00]} Rf3 {[%emt 0:00:27]} 55. Kg2 {[%emt 0:00:02]} Rb3 {[%emt 0:00:02]} 56. Kf1 {[%emt 0:00:16]} g5 {[%emt 0:00:32]} 57. Ke2 {[%emt 0:00:05]} h4 {[%emt 0:00:21]} 58. gxh4 {[%emt 0:00:58]} gxh4 {[%emt 0:00:03]} 59. Kf1 {[%emt 0:00:29]} h3 {[%emt 0:00:09]} 60. Kg1 {[%emt 0:00:02]} Rb2 {[%emt 0:00:44]} 61. b6 {[%emt 0:00:28]} h2+ {[%emt 0:00:48]} 62. Kxh2 {[%emt 0:00:06]} Rxf2+ {[%emt 0:00:02]} 63. Kg3 {[%emt 0:00:02]} Rb2 {[%emt 0:00:02]} 64. Kf4 {[%emt 0:00:26]} Rb5 {[%emt 0:00:25]} 65. Ke4 {[%emt 0:00:12]} Kf6 {[%emt 0:04:57]} 66. Kd4 {[%emt 0:00:37]} Kf5 {[%emt 0:01:21]} 67. Kc4 {[%emt 0:00:07]} Rb1 {[%emt 0:00:04]} 68. Kd5 {[%emt 0:00:18]} Kf4 {[%emt 0:00:47]} 69. Kc6 {[%emt 0:00:32]} f5 {[%emt 0:00:56]} 70. Ra8 {[%emt 0:00:09]} Kg3 {[%emt 0:01:32]} 71. Ra5 {[%emt 0:00:24]} Rxb6+ {[%emt 0:00:57]} 72. Kxb6 {[%emt 0:00:02]} f4 {[%emt 0:00:01]} 73. Kc5 {[%emt 0:00:25]} f3 {[%emt 0:00:20]} 74. Kd4 {[%emt 0:00:08]} f2 {[%emt 0:00:56]} 75. Rf5 {[%emt 0:00:07]} Kg2 {[%emt 0:00:13]} 76. Rxf2+ {[%emt 0:00:46]} Kxf2 $11 {[%emt 0:00:02]} 77. Ke4 {[%emt 0:00:03] Ke3+ [%emt 00:00:02]} 1/2-1/2

[Event "46th OKU-B 2019"]
[Site "Utrecht"]
[Date "2019.06.01"]
[Round "4.3"]
[White "Kraaijpoel, Dirk"]
[Black "Scholten, Marcel"]
[Result "1/2-1/2"]
[ECO "E02"]
[WhiteElo "1846"]
[BlackElo "1747"]
[Annotator "NA RC"]
[PlyCount "80"]
[EventDate "2019.05.31"]
[EventType "swiss"]
[EventCountry "NED"]
[SourceTitle "playchess.com"]
[Source "ChessBase"]
[SourceQuality "1"]
[TimeControl "6600+10"]

1. d4 {[%emt 0:00:00]} d5 {[%emt 0:00:00]} 2. c4 {[%emt 0:00:01]} e6 {[%emt 0:00:00]} 3. Nf3 {[%emt 0:00:15]} Nf6 {[%emt 0:00:02]} 4. g3 {[%emt 0:00:18]} c6 {[%emt 0:01:45]} 5. Bg2 {[%emt 0:00:39]} Nbd7 {[%emt 0:00:14]} 6. Qc2 {[%emt 0:02:15]} dxc4 {[%emt 0:02:01]} 7. Qxc4 {[%emt 0:00:39]} Nb6 {[%emt 0:00:24] E02: Open Catalan: 5 Qa4+} (7... Bd6 8. O-O O-O 9. Nc3 e5 10. Bg5 h6 11. Ne4 Be7 12. dxe5 hxg5 13. exf6 Bxf6 14. Rad1 Qe7 15. Nxf6+ Qxf6 16. Qc1 g4 17. Ng5 {½-½ (34) Xu,J (2527)-Wen,Y (2614) Xinghua 2016}) 8. Qc2 {[%emt 0:00:18]} Nbd5 {[%emt 0:01:36]} 9. Nc3 {[%emt 0:07:40]} Be7 {[%emt 0:02:34]} 10. O-O {[%emt 0:00:08]} O-O $146 {[%emt 0:01:13]} ({Predecessor:} 10... Bd7 11. e4 Nb6 12. Bf4 Nh5 13. Be3 {0-1 (63) Nemec,F-Hanus,P Czechia 1999}) 11. e4 {[%emt 0:05:13]} Nb4 {[%emt 0:03:29]} 12. Qb3 {[%emt 0:03:05]} c5 {[%emt 0:03:50]} 13. Rd1 {[%emt 0:13:41]} cxd4 {[%emt 0:05:33]} 14. Nxd4 {[%emt 0:09:29]} Qa5 {[%emt 0:02:14]} 15. a3 {[%emt 0:12:34]} e5 {[%emt 0:11:31]} ({Black should play} 15... Nc6) 16. Ndb5 {[%emt 0:18:50]} (16. Nf5 $16 Nc6 17. Nxe7+ Nxe7 18. Be3) 16... Be6 {[%emt 0:04:19]} 17. Nd5 {[%emt 0:01:44]} Nc6 {[%emt 0:08:27]} (17... Nbxd5 $11 18. exd5 Bg4) 18. Be3 {[%emt 0:14:52]} a6 {[%emt 0:03:03]} (18... Ng4 $14) 19. Nbc3 {[%emt 0:02:08]} b5 {[%emt 0:05:54] [#]} (19... Bxd5 $16 {was necessary.} 20. exd5 (20. Nxd5 Nxd5 21. Rxd5 Qc7 $16) 20... Nd4 21. Qxb7 (21. Bxd4 exd4 22. Rxd4 Bc5 $16) 21... Bd6) 20. Qc2 $1 {[%emt 0:00:11]} Nd7 {[%emt 0:01:56] [#]} (20... Bxd5 {is a better defense.} 21. b4 (21. Nxd5 Nxd5 22. exd5 Nd4 $16) (21. exd5 Nd4 $18) (21. Rxd5 Qc7 $16) 21... Bb3 22. Qxb3 (22. bxa5 $2 {perishes.} Bxc2 23. Rd2 Bb3 $19) 22... Qc7) 21. Bb6 $1 {[%emt 0:02:33]} Nxb6 {[%emt 0:01:56]} 22. Nxe7+ {[%emt 0:00:12]} Nxe7 {[%emt 0:01:25]} 23. b4 {[%emt 0:00:10]} Qa4 {[%emt 0:02:37]} 24. Nxa4 {[%emt 0:00:11]} Nxa4 {[%emt 0:00:08]} 25. Qc7 {[%emt 0:02:19]} Ng6 {[%emt 0:01:05]} 26. Rac1 {[%emt 0:01:55]} (26. Rd6 $142) 26... Nb2 {[%emt 0:00:59]} 27. Qd6 {[%emt 0:08:31]} Nxd1 {[%emt 0:01:18]} 28. Rxd1 $18 {[%emt 0:00:10]} ({But not} 28. Qxd1 Rfd8 $16) 28... Rfc8 {[%emt 0:03:27]} 29. f4 {[%emt 0:00:25]} exf4 {[%emt 0:01:42]} 30. gxf4 {[%emt 0:00:04]} Bg4 {[%emt 0:00:24]} 31. Rd2 {[%emt 0:00:43]} Rc3 {[%emt 0:02:15]} 32. Rd3 {[%emt 0:02:06]} Rxd3 {[%emt 0:01:38]} 33. Qxd3 {[%emt 0:00:02]} Nxf4 {[%emt 0:00:35]} 34. Qd6 {[%emt 0:00:48]} Nxg2 {[%emt 0:04:35]} 35. Kxg2 {[%emt 0:00:01]} Be6 {[%emt 0:00:57]} 36. Qc6 {[%emt 0:00:17]} Rb8 {[%emt 0:02:54]} 37. Qxa6 {[%emt 0:00:19]} h6 {[%emt 0:00:59]} 38. a4 {[%emt 0:01:10]} bxa4 {[%emt 0:00:38]} 39. Qxa4 {[%emt 0:00:01]} Bc4 {[%emt 0:01:17]} 40. Qc6 {[%emt 0:00:15]} Rxb4 {[%emt 0:02:03]} 1/2-1/2

[Event "46th OKU-B 2019"]
[Site "Utrecht"]
[Date "2019.06.01"]
[Round "4.4"]
[White "Lutz, Chris"]
[Black "Smit, Ron"]
[Result "1-0"]
[ECO "C03"]
[WhiteElo "1800"]
[BlackElo "1767"]
[Annotator "NA RC"]
[PlyCount "59"]
[EventDate "2019.05.31"]
[EventType "swiss"]
[EventCountry "NED"]
[SourceTitle "playchess.com"]
[Source "ChessBase"]
[SourceQuality "1"]
[TimeControl "6600+10"]

1. e4 {[%emt 0:00:00]} e6 {[%emt 0:02:56]} 2. d4 {[%emt 0:00:00]} d5 {[%emt 0:00:05]} 3. Nd2 {[%emt 0:00:12]} b6 {[%emt 0:00:29]} 4. Ngf3 {[%emt 0:00:49]} Bb7 {[%emt 0:01:44]} 5. Bd3 {[%emt 0:00:47]} Be7 {[%emt 0:01:00]} (5... Nf6 6. exd5 Nxd5 7. O-O Be7 8. Be4 c6 9. c4 Nf6 10. Bc2 c5 11. dxc5 Bxc5 12. Qe2 Nbd7 13. b3 O-O {0-1 (38) Grigoriants,S (2576)-Nakamura,H (2786) chess.com INT 2017}) 6. O-O {[%emt 0:00:22] C03: French Tarrasch: Unusual Black 3rd moves} Nd7 {[%emt 0:03:43]} 7. Re1 {[%emt 0:01:23]} Ngf6 $146 {[%emt 0:03:29] [#]} ({Predecessor:} 7... dxe4 8. Nxe4 Ngf6 9. Qe2 h6 10. Bd2 Nxe4 11. Bxe4 Bxe4 {½-½ (11) Kalmar,K (1998)-Sumegi,M (2046) Hungary 2011}) 8. e5 $1 {[%emt 0:00:57]} Nh5 {[%emt 0:03:22]} 9. Nf1 {[%emt 0:00:25]} g6 {[%emt 0:00:30]} 10. Bh6 {[%emt 0:00:43]} Rg8 {[%emt 0:01:24]} 11. Qd2 {[%emt 0:05:27]} c5 {[%emt 0:00:49]} 12. c3 {[%emt 0:00:36]} a5 {[%emt 0:08:27]} 13. g4 {[%emt 0:06:08]} Ng7 {[%emt 0:00:00]} 14. Ng5 $2 {[%emt 0:00:33]} (14. Rad1 $18) 14... Bxg5 $2 {[%emt 0:00:00]} (14... Nf5 $11) 15. Bxg5 {[%emt 0:03:20]} f6 {[%emt 0:00:00]} 16. exf6 {[%emt 0:01:08]} Nxf6 {[%emt 0:00:00]} 17. Qf4 {[%emt 0:05:09]} Rf8 {[%emt 0:05:04]} 18. Bb5+ {[%emt 0:08:49]} Ke7 $2 {[%emt 0:01:37]} (18... Kf7 $16 19. Re3 Kg8) 19. Re3 {[%emt 0:01:57]} Bc8 {[%emt 0:00:46]} 20. Rf3 {[%emt 0:00:59]} Nf5 {[%emt 0:05:20]} 21. gxf5 {[%emt 0:00:24]} gxf5 {[%emt 0:00:10]} 22. Ng3 {[%emt 0:07:35]} Bd7 {[%emt 0:02:11]} 23. Bd3 {[%emt 0:04:47]} h6 {[%emt 0:01:26]} 24. Bxh6 {[%emt 0:00:59]} Rh8 $18 {[%emt 0:00:25]} 25. Bg5 {[%emt 0:07:57]} Qg8 {[%emt 0:00:50]} 26. h4 {[%emt 0:01:40]} Rf8 {[%emt 0:00:17]} 27. Qe5 {[%emt 0:02:17]} Qg6 {[%emt 0:02:26]} 28. Nxf5+ {[%emt 0:01:46]} Kd8 {[%emt 0:00:57]} 29. Qb8+ {[%emt 0:00:36]} Bc8 {[%emt 0:00:30]} 30. Qxc8+ {[%emt 0:00:32]} 1-0

[Event "46th OKU-B 2019"]
[Site "Utrecht"]
[Date "2019.06.01"]
[Round "4.5"]
[White "De Dreu, Dies"]
[Black "Cheng, Di"]
[Result "1-0"]
[ECO "A46"]
[WhiteElo "1761"]
[BlackElo "1391"]
[Annotator "NA RC"]
[PlyCount "73"]
[EventDate "2019.05.31"]
[EventType "swiss"]
[EventCountry "NED"]
[SourceTitle "playchess.com"]
[Source "ChessBase"]
[SourceQuality "1"]
[TimeControl "6600+10"]

1. d4 {[%emt 0:00:47]} Nf6 {[%emt 0:00:00]} 2. Nf3 {[%emt 0:00:10]} e6 {[%emt 0:00:03]} 3. Bg5 {[%emt 0:00:33]} h6 {[%emt 0:01:30]} 4. Bh4 {[%emt 0:00:34]} d5 {[%emt 0:00:20]} 5. Nbd2 {[%emt 0:01:49]} c5 {[%emt 0:03:12]} 6. e3 {[%emt 0:00:22]} c4 {[%emt 0:01:17]} 7. Be2 {[%emt 0:02:46]} Be7 {[%emt 0:00:39]} 8. O-O {[%emt 0:01:42]} O-O {[%emt 0:00:10]} 9. c3 {[%emt 0:01:39]} b5 {[%emt 0:01:47]} 10. Ne5 {[%emt 0:04:57]} Bb7 {[%emt 0:03:07]} 11. Qc2 {[%emt 0:05:36]} Nbd7 {[%emt 0:01:47]} 12. Nxd7 {[%emt 0:01:01]} Qxd7 {[%emt 0:00:08]} 13. Bf3 {[%emt 0:01:32]} Rfe8 {[%emt 0:02:48]} 14. Rfe1 {[%emt 0:01:07]} g5 {[%emt 0:05:32]} 15. Bg3 {[%emt 0:00:15]} Bd6 {[%emt 0:08:32]} 16. Bxd6 {[%emt 0:03:01]} Qxd6 {[%emt 0:00:07]} 17. e4 {[%emt 0:10:02]} e5 {[%emt 0:04:01]} 18. dxe5 {[%emt 0:10:31]} Rxe5 {[%emt 0:00:12]} 19. exd5 {[%emt 0:01:49]} Bxd5 {[%emt 0:01:38]} 20. Bxd5 {[%emt 0:01:10]} Rxd5 {[%emt 0:02:31]} 21. Nf3 {[%emt 0:01:12]} Rd8 {[%emt 0:05:06]} 22. Nd4 {[%emt 0:07:40]} Ng4 {[%emt 0:00:31]} 23. g3 {[%emt 0:01:46]} Ne5 {[%emt 0:00:19]} 24. Re3 {[%emt 0:06:49]} Nd3 {[%emt 0:01:15]} 25. Qe2 {[%emt 0:01:34]} a6 {[%emt 0:02:18]} 26. b3 {[%emt 0:08:08]} Qg6 {[%emt 0:12:16]} 27. a4 {[%emt 0:09:38]} Nc5 {[%emt 0:03:16]} 28. bxc4 {[%emt 0:02:53]} bxc4 {[%emt 0:00:35]} 29. Qxc4 {[%emt 0:01:18]} Ne4 {[%emt 0:05:25]} 30. Nc6 {[%emt 0:05:25]} Rd1+ {[%emt 0:22:04]} 31. Rxd1 {[%emt 0:06:10]} Rxd1+ {[%emt 0:00:09]} 32. Kg2 {[%emt 0:00:10]} Nd2 {[%emt 0:04:24]} 33. Ne7+ {[%emt 0:01:55]} Kh7 {[%emt 0:03:07]} 34. Qc8 {[%emt 0:03:24]} Qg7 {[%emt 0:02:27]} 35. Qf5+ {[%emt 0:01:03]} Kh8 {[%emt 0:00:25]} 36. Rd3 {[%emt 0:01:57]} Qf8 {[%emt 0:01:37]} 37. Ng6+ {[%emt 0:00:27]} 1-0